[Event "Titled Tuesday Blitz June 07 Late 2022"]
[White "Zhurbinsky, David"]
[Black "Bryakin, Mikhail"]
[WhiteFideId "2072904"]
[BlackFideId "4165314"]
[WhiteElo "2536"]
[BlackElo "2417"]
[Result "1-0"]
[Round "04"]
[TimeControl "180+1"]
[Date "2022.06.07"]
[WhiteClock "0:00:15"]
[BlackClock "0:00:52"]

1. e4 {[%clk 0:03:00]}  e6 {[%clk 0:02:55]} 2. d4 {[%clk 0:03:00]}  d5 {[%clk 0:02:56]} 3. Nc3 {[%clk 0:03:01]}  Bb4 {[%clk 0:02:55]} 4. e5 {[%clk 0:03:02]}  c5 {[%clk 0:02:54]} 5. a3 {[%clk 0:03:02]}  Ba5 {[%clk 0:02:53]} 6. Nf3 {[%clk 0:02:56]}  Nd7 {[%clk 0:02:49]} 7. Be3 {[%clk 0:02:48]}  Bxc3+ {[%clk 0:02:46]} 8. bxc3 {[%clk 0:02:48]}  c4 {[%clk 0:02:47]} 9. Be2 {[%clk 0:02:48]}  h6 {[%clk 0:02:47]} 10. a4 {[%clk 0:02:44]}  b6 {[%clk 0:02:45]} 11. Bc1 {[%clk 0:02:41]}  Ne7 {[%clk 0:02:43]} 12. Ba3 {[%clk 0:02:40]}  Nf5 {[%clk 0:02:43]} 13. Qd2 {[%clk 0:02:37]}  Bb7 {[%clk 0:02:40]} 14. O-O {[%clk 0:02:34]}  Bc6 {[%clk 0:02:40]} 15. a5 {[%clk 0:02:29]}  b5 {[%clk 0:02:37]} 16. Bb4 {[%clk 0:02:15]}  a6 {[%clk 0:02:26]} 17. h3 {[%clk 0:02:10]}  Nf8 {[%clk 0:02:22]} 18. Kh2 {[%clk 0:02:00]}  Kd7 {[%clk 0:02:22]} 19. g4 {[%clk 0:01:56]}  Nh4 {[%clk 0:02:21]} 20. Nxh4 {[%clk 0:01:55]}  Qxh4 {[%clk 0:02:22]} 21. f4 {[%clk 0:01:54]}  Nh7 {[%clk 0:02:15]} 22. Qe3 {[%clk 0:01:48]}  Rae8 {[%clk 0:02:15]} 23. f5 {[%clk 0:01:40]}  Ng5 {[%clk 0:02:13]} 24. fxe6+ {[%clk 0:01:37]}  fxe6 {[%clk 0:02:12]} 25. Rf4 {[%clk 0:01:28]}  Kc8 {[%clk 0:02:10]} 26. Raf1 {[%clk 0:01:27]}  Rd8 {[%clk 0:02:09]} 27. Bc5 {[%clk 0:01:19]}  Be8 {[%clk 0:02:07]} 28. Bb6 {[%clk 0:01:14]}  Rd7 {[%clk 0:02:07]} 29. Rf8 {[%clk 0:01:12]}  Rxf8 {[%clk 0:02:07]} 30. Rxf8 {[%clk 0:01:12]}  Re7 {[%clk 0:02:04]} 31. Bc5 {[%clk 0:01:12]}  Rf7 {[%clk 0:02:05]} 32. Rxe8+ {[%clk 0:00:57]}  Kd7 {[%clk 0:02:04]} 33. Rf8 {[%clk 0:00:54]}  Qe1 {[%clk 0:01:30]} 34. Rxf7+ {[%clk 0:00:44]}  Nxf7 {[%clk 0:01:31]} 35. Kg2 {[%clk 0:00:40]}  Qb1 {[%clk 0:01:26]} 36. Qf2 {[%clk 0:00:35]}  Nd8 {[%clk 0:01:19]} 37. Bf1 {[%clk 0:00:24]}  Qa1 {[%clk 0:01:02]} 38. Qf8 {[%clk 0:00:19]}  Qxc3 {[%clk 0:01:00]} 39. Qe7+ {[%clk 0:00:17]}  Kc8 {[%clk 0:01:00]} 40. Bb6 {[%clk 0:00:15]}  Qd2+ {[%clk 0:00:52]} 41. Kh1 {[%clk 0:00:15]} 1-0


[Site "https://www.chess.com"]

[Event "Titled Tuesday Blitz June 07 Late 2022"]
[White "Andreikin, Dmitry"]
[Black "Vasquez Schroeder, Rodrigo"]
[WhiteFideId "4158814"]
[BlackFideId "3400042"]
[WhiteElo "2736"]
[BlackElo "2567"]
[Result "1-0"]
[Round "05"]
[TimeControl "180+1"]
[Date "2022.06.07"]
[WhiteClock "0:00:03"]
[BlackClock "0:00:01"]

1. d4 {[%clk 0:03:00]}  Nf6 {[%clk 0:02:59]} 2. c4 {[%clk 0:03:00]}  g6 {[%clk 0:02:58]} 3. Nc3 {[%clk 0:03:00]}  Bg7 {[%clk 0:02:58]} 4. e4 {[%clk 0:03:00]}  d6 {[%clk 0:02:59]} 5. h3 {[%clk 0:02:59]}  O-O {[%clk 0:02:58]} 6. Be3 {[%clk 0:03:00]}  c5 {[%clk 0:02:43]} 7. Nf3 {[%clk 0:02:59]}  cxd4 {[%clk 0:02:41]} 8. Nxd4 {[%clk 0:03:00]}  b6 {[%clk 0:02:41]} 9. g4 {[%clk 0:02:58]}  Bb7 {[%clk 0:02:41]} 10. Bg2 {[%clk 0:02:58]}  Nfd7 {[%clk 0:02:37]} 11. O-O {[%clk 0:02:53]}  Nc6 {[%clk 0:02:37]} 12. Rc1 {[%clk 0:02:49]}  Rc8 {[%clk 0:02:35]} 13. b3 {[%clk 0:02:48]}  Nc5 {[%clk 0:02:33]} 14. Nde2 {[%clk 0:02:34]}  Qd7 {[%clk 0:02:29]} 15. f4 {[%clk 0:02:31]}  Rfd8 {[%clk 0:02:23]} 16. Ng3 {[%clk 0:02:19]}  e6 {[%clk 0:02:22]} 17. Qd2 {[%clk 0:02:06]}  Qe7 {[%clk 0:02:22]} 18. f5 {[%clk 0:01:59]}  Be5 {[%clk 0:02:19]} 19. Bg5 {[%clk 0:01:46]}  f6 {[%clk 0:02:11]} 20. Bf4 {[%clk 0:01:46]}  g5 {[%clk 0:02:08]} 21. Bxe5 {[%clk 0:01:41]}  dxe5 {[%clk 0:02:09]} 22. Qe2 {[%clk 0:01:32]}  Nd3 {[%clk 0:02:09]} 23. fxe6 {[%clk 0:01:28]}  Nxc1 {[%clk 0:02:09]} 24. Rxc1 {[%clk 0:01:27]}  Nd4 {[%clk 0:02:08]} 25. Qf2 {[%clk 0:01:25]}  Nxe6 {[%clk 0:02:05]} 26. Nd5 {[%clk 0:01:19]}  Bxd5 {[%clk 0:02:04]} 27. exd5 {[%clk 0:01:20]}  Nf4 {[%clk 0:02:05]} 28. Nf5 {[%clk 0:01:17]}  Qc5 {[%clk 0:01:45]} 29. Rd1 {[%clk 0:01:15]}  Kf8 {[%clk 0:01:39]} 30. Bf1 {[%clk 0:01:10]}  b5 {[%clk 0:01:30]} 31. d6 {[%clk 0:00:56]}  bxc4 {[%clk 0:01:26]} 32. bxc4 {[%clk 0:00:57]}  Qxc4 {[%clk 0:01:13]} 33. Qxa7 {[%clk 0:00:44]}  Qc5+ {[%clk 0:01:12]} 34. Qxc5 {[%clk 0:00:41]}  Rxc5 {[%clk 0:01:13]} 35. Rb1 {[%clk 0:00:39]}  Ra5 {[%clk 0:00:41]} 36. Rb7 {[%clk 0:00:37]}  Rxa2 {[%clk 0:00:32]} 37. Bc4 {[%clk 0:00:29]}  Rc2 {[%clk 0:00:20]} 38. Rf7+ {[%clk 0:00:25]}  Kg8 {[%clk 0:00:17]} 39. Rd7+ {[%clk 0:00:18]}  Rxc4 {[%clk 0:00:18]} 40. Rxd8+ {[%clk 0:00:19]}  Kf7 {[%clk 0:00:18]} 41. Rd7+ {[%clk 0:00:16]}  Ke8 {[%clk 0:00:14]} 42. Rxh7 {[%clk 0:00:16]}  Rc2 {[%clk 0:00:12]} 43. d7+ {[%clk 0:00:14]}  Kd8 {[%clk 0:00:12]} 44. Nd6 {[%clk 0:00:15]}  Nxh3+ {[%clk 0:00:09]} 45. Kf1 {[%clk 0:00:12]}  Rc1+ {[%clk 0:00:05]} 46. Ke2 {[%clk 0:00:13]}  Nf4+ {[%clk 0:00:05]} 47. Kd2 {[%clk 0:00:13]}  Rc7 {[%clk 0:00:05]} 48. Nf7+ {[%clk 0:00:07]}  Kxd7 {[%clk 0:00:06]} 49. Nxg5+ {[%clk 0:00:07]}  Kc6 {[%clk 0:00:05]} 50. Rh6 {[%clk 0:00:05]}  Rd7+ {[%clk 0:00:06]} 51. Ke1 {[%clk 0:00:04]}  Kd5 {[%clk 0:00:03]} 52. Nh7 {[%clk 0:00:03]}  Kd4 {[%clk 0:00:01]} 53. Nxf6 {[%clk 0:00:04]}  Rg7 {[%clk 0:00:01]} 54. Kf2 {[%clk 0:00:03]} 1-0


[Site "https://www.chess.com"]

[Event "Titled Tuesday Blitz June 07 Late 2022"]
[White "Bjelobrk, Igor"]
[Black "Sjugirov, Sanan"]
[WhiteFideId "4300726"]
[BlackFideId "4189302"]
[WhiteElo "2335"]
[BlackElo "2602"]
[Result "0-1"]
[Round "05"]
[TimeControl "180+1"]
[Date "2022.06.07"]
[WhiteClock "0:01:08"]
[BlackClock "0:00:23"]

1. Nf3 {[%clk 0:03:00]}  d5 {[%clk 0:02:58]} 2. c4 {[%clk 0:03:00]}  e6 {[%clk 0:02:58]} 3. g3 {[%clk 0:02:59]}  dxc4 {[%clk 0:02:56]} 4. Qa4+ {[%clk 0:02:58]}  Nd7 {[%clk 0:02:56]} 5. Qxc4 {[%clk 0:02:56]}  a6 {[%clk 0:02:56]} 6. Qc2 {[%clk 0:02:52]}  b5 {[%clk 0:02:53]} 7. Bg2 {[%clk 0:02:49]}  Bb7 {[%clk 0:02:53]} 8. O-O {[%clk 0:02:49]}  c5 {[%clk 0:02:48]} 9. a4 {[%clk 0:02:49]}  Ngf6 {[%clk 0:02:45]} 10. d3 {[%clk 0:02:49]}  Be7 {[%clk 0:02:42]} 11. Nc3 {[%clk 0:02:48]}  Qb6 {[%clk 0:02:27]} 12. axb5 {[%clk 0:02:46]}  axb5 {[%clk 0:02:28]} 13. Rxa8+ {[%clk 0:02:46]}  Bxa8 {[%clk 0:02:28]} 14. Qb3 {[%clk 0:02:44]}  b4 {[%clk 0:02:20]} 15. Nb1 {[%clk 0:02:38]}  O-O {[%clk 0:02:07]} 16. Nbd2 {[%clk 0:02:37]}  Qa6 {[%clk 0:02:03]} 17. Nc4 {[%clk 0:02:37]}  Nb6 {[%clk 0:01:58]} 18. Nfe5 {[%clk 0:02:34]}  Nxc4 {[%clk 0:01:48]} 19. Nxc4 {[%clk 0:02:29]}  Bxg2 {[%clk 0:01:42]} 20. Kxg2 {[%clk 0:02:30]}  Nd5 {[%clk 0:01:37]} 21. e4 {[%clk 0:02:24]}  Nc7 {[%clk 0:01:31]} 22. Be3 {[%clk 0:02:23]}  Nb5 {[%clk 0:01:30]} 23. Rc1 {[%clk 0:02:19]}  Rd8 {[%clk 0:01:25]} 24. Qd1 {[%clk 0:02:10]}  h6 {[%clk 0:01:06]} 25. Ra1 {[%clk 0:02:04]}  Qc6 {[%clk 0:00:59]} 26. Qe2 {[%clk 0:02:01]}  Bf6 {[%clk 0:00:49]} 27. Rc1 {[%clk 0:01:50]}  Bd4 {[%clk 0:00:44]} 28. Kg1 {[%clk 0:01:46]}  Bxe3 {[%clk 0:00:42]} 29. fxe3 {[%clk 0:01:47]}  Qd7 {[%clk 0:00:39]} 30. Rd1 {[%clk 0:01:46]}  Nd6 {[%clk 0:00:37]} 31. Qc2 {[%clk 0:01:35]}  Nxe4 {[%clk 0:00:29]} 32. Ne5 {[%clk 0:01:24]}  Qd5 {[%clk 0:00:28]} 33. Nc4 {[%clk 0:01:11]}  Ng5 {[%clk 0:00:27]} 34. Qg2 {[%clk 0:01:08]}  Qxc4 {[%clk 0:00:23]} 0-1


[Site "https://www.chess.com"]

[Event "Titled Tuesday Blitz June 07 Late 2022"]
[White "Bok, Benjamin"]
[Black "Maksimovic, Bojan"]
[WhiteFideId "1017063"]
[BlackFideId "14408120"]
[WhiteElo "2658"]
[BlackElo "2453"]
[Result "1-0"]
[Round "05"]
[TimeControl "180+1"]
[Date "2022.06.07"]
[WhiteClock "0:02:14"]
[BlackClock "0:01:46"]

1. d4 {[%clk 0:03:00]}  Nf6 {[%clk 0:03:00]} 2. c4 {[%clk 0:03:01]}  c5 {[%clk 0:03:00]} 3. Nf3 {[%clk 0:03:00]}  cxd4 {[%clk 0:02:55]} 4. Nxd4 {[%clk 0:03:01]}  e6 {[%clk 0:02:50]} 5. g3 {[%clk 0:03:00]}  a6 {[%clk 0:02:49]} 6. Bg2 {[%clk 0:03:00]}  Qc7 {[%clk 0:02:48]} 7. b3 {[%clk 0:02:53]}  Nc6 {[%clk 0:02:46]} 8. O-O {[%clk 0:02:52]}  Be7 {[%clk 0:02:44]} 9. Nc3 {[%clk 0:02:51]}  O-O {[%clk 0:02:43]} 10. Bb2 {[%clk 0:02:47]}  d6 {[%clk 0:02:43]} 11. Rc1 {[%clk 0:02:46]}  Nxd4 {[%clk 0:02:25]} 12. Qxd4 {[%clk 0:02:47]}  Bd7 {[%clk 0:02:25]} 13. Rfd1 {[%clk 0:02:47]}  Bc6 {[%clk 0:02:24]} 14. Nd5 {[%clk 0:02:47]}  Bxd5 {[%clk 0:02:07]} 15. cxd5 {[%clk 0:02:48]}  Qd7 {[%clk 0:02:07]} 16. dxe6 {[%clk 0:02:36]}  fxe6 {[%clk 0:02:08]} 17. Qb6 {[%clk 0:02:36]}  d5 {[%clk 0:01:57]} 18. Rc7 {[%clk 0:02:34]}  Qd6 {[%clk 0:01:58]} 19. Rxb7 {[%clk 0:02:26]}  Rae8 {[%clk 0:01:58]} 20. e3 {[%clk 0:02:15]}  Ng4 {[%clk 0:01:46]} 21. Qxd6 {[%clk 0:02:14]}  Bxd6 {[%clk 0:01:46]} 22. Rxg7+ {[%clk 0:02:14]} 1-0


[Site "https://www.chess.com"]

[Event "Titled Tuesday Blitz June 07 Late 2022"]
[White "Bortnyk, Olexandr"]
[Black "Holt, Conrad"]
[WhiteFideId "14120828"]
[BlackFideId "2034387"]
[WhiteElo "2723"]
[BlackElo "2586"]
[Result "0-1"]
[Round "05"]
[TimeControl "180+1"]
[Date "2022.06.07"]
[WhiteClock "0:00:02"]
[BlackClock "0:00:21"]

1. d4 {[%clk 0:02:50]}  d5 {[%clk 0:02:59]} 2. Nc3 {[%clk 0:02:50]}  e6 {[%clk 0:02:58]} 3. Bf4 {[%clk 0:02:49]}  Bb4 {[%clk 0:02:55]} 4. e3 {[%clk 0:02:49]}  Nf6 {[%clk 0:02:55]} 5. a3 {[%clk 0:02:38]}  Bxc3+ {[%clk 0:02:53]} 6. bxc3 {[%clk 0:02:39]}  c5 {[%clk 0:02:52]} 7. dxc5 {[%clk 0:02:31]}  Qa5 {[%clk 0:02:51]} 8. Ne2 {[%clk 0:01:47]}  Nc6 {[%clk 0:02:49]} 9. f3 {[%clk 0:01:39]}  e5 {[%clk 0:02:45]} 10. Bg5 {[%clk 0:01:37]}  Qxc5 {[%clk 0:02:42]} 11. Bxf6 {[%clk 0:01:29]}  gxf6 {[%clk 0:02:42]} 12. Qd2 {[%clk 0:01:30]}  Be6 {[%clk 0:02:40]} 13. Nc1 {[%clk 0:01:30]}  O-O-O {[%clk 0:02:39]} 14. Rb1 {[%clk 0:01:26]}  d4 {[%clk 0:02:30]} 15. cxd4 {[%clk 0:01:26]}  exd4 {[%clk 0:02:30]} 16. e4 {[%clk 0:01:25]}  f5 {[%clk 0:02:27]} 17. Rb5 {[%clk 0:01:10]}  Qxa3 {[%clk 0:02:23]} 18. exf5 {[%clk 0:01:07]}  a6 {[%clk 0:02:16]} 19. Rb1 {[%clk 0:00:42]}  Bxf5 {[%clk 0:02:13]} 20. Bd3 {[%clk 0:00:43]}  Bxd3 {[%clk 0:02:02]} 21. Nxd3 {[%clk 0:00:43]}  Rhe8+ {[%clk 0:01:57]} 22. Kf2 {[%clk 0:00:44]}  Re3 {[%clk 0:01:57]} 23. Rb3 {[%clk 0:00:33]}  Qa5 {[%clk 0:01:55]} 24. Qxa5 {[%clk 0:00:12]}  Nxa5 {[%clk 0:01:55]} 25. Rb4 {[%clk 0:00:13]}  Nc6 {[%clk 0:01:50]} 26. Rc4 {[%clk 0:00:11]}  Kc7 {[%clk 0:01:27]} 27. Rd1 {[%clk 0:00:05]}  a5 {[%clk 0:01:10]} 28. Rc5 {[%clk 0:00:05]}  Rde8 {[%clk 0:01:06]} 29. Nf4 {[%clk 0:00:03]}  R3e5 {[%clk 0:01:04]} 30. Rxe5 {[%clk 0:00:01]}  Rxe5 {[%clk 0:01:04]} 31. g4 {[%clk 0:00:01]}  a4 {[%clk 0:01:03]} 32. Ra1 {[%clk 0:00:01]}  b5 {[%clk 0:01:02]} 33. Nd3 {[%clk 0:00:02]}  Re3 {[%clk 0:01:00]} 34. h4 {[%clk 0:00:03]}  Ne5 {[%clk 0:00:51]} 35. Nxe5 {[%clk 0:00:03]}  Rxe5 {[%clk 0:00:51]} 36. g5 {[%clk 0:00:04]}  Rc5 {[%clk 0:00:50]} 37. Ra2 {[%clk 0:00:04]}  Kd6 {[%clk 0:00:49]} 38. Kg3 {[%clk 0:00:04]}  Rc3 {[%clk 0:00:40]} 39. Kf4 {[%clk 0:00:04]}  a3 {[%clk 0:00:35]} 40. h5 {[%clk 0:00:04]}  b4 {[%clk 0:00:34]} 41. Ke4 {[%clk 0:00:04]}  Kc5 {[%clk 0:00:33]} 42. f4 {[%clk 0:00:02]}  Rh3 {[%clk 0:00:27]} 43. h6 {[%clk 0:00:02]}  Kc4 {[%clk 0:00:27]} 44. Ke5 {[%clk 0:00:02]}  d3 {[%clk 0:00:27]} 45. cxd3+ {[%clk 0:00:03]}  Rxd3 {[%clk 0:00:25]} 46. Kf6 {[%clk 0:00:04]}  Kb3 {[%clk 0:00:22]} 47. Ra1 {[%clk 0:00:02]}  Kb2 {[%clk 0:00:21]} 48. Rh1 {[%clk 0:00:02]}  a2 {[%clk 0:00:22]} 49. Kg7 {[%clk 0:00:03]}  a1=Q {[%clk 0:00:22]} 50. Rxa1 {[%clk 0:00:03]}  Kxa1 {[%clk 0:00:23]} 51. Kxh7 {[%clk 0:00:04]}  b3 {[%clk 0:00:22]} 52. Kg8 {[%clk 0:00:03]}  b2 {[%clk 0:00:22]} 53. h7 {[%clk 0:00:03]}  Rd8+ {[%clk 0:00:20]} 54. Kxf7 {[%clk 0:00:01]}  b1=Q {[%clk 0:00:21]} 55. g6 {[%clk 0:00:02]}  Qf5+ {[%clk 0:00:21]} 0-1


[Site "https://www.chess.com"]

[Event "Titled Tuesday Blitz June 07 Late 2022"]
[White "Dubov, Daniil"]
[Black "Shimanov, Aleksandr"]
[WhiteFideId "24126055"]
[BlackFideId "4198603"]
[WhiteElo "2791"]
[BlackElo "2605"]
[Result "1-0"]
[Round "05"]
[TimeControl "180+1"]
[Date "2022.06.07"]
[WhiteClock "0:01:46"]
[BlackClock "0:01:40"]

1. e4 {[%clk 0:03:00]}  e6 {[%clk 0:02:49]} 2. d4 {[%clk 0:02:59]}  d5 {[%clk 0:02:49]} 3. e5 {[%clk 0:03:00]}  c5 {[%clk 0:02:49]} 4. c3 {[%clk 0:03:01]}  Qa5 {[%clk 0:02:49]} 5. Nf3 {[%clk 0:02:43]}  Nc6 {[%clk 0:02:48]} 6. dxc5 {[%clk 0:02:39]}  Qc7 {[%clk 0:02:47]} 7. Bf4 {[%clk 0:02:33]}  Bxc5 {[%clk 0:02:44]} 8. Bd3 {[%clk 0:02:32]}  Nge7 {[%clk 0:02:42]} 9. O-O {[%clk 0:02:30]}  f5 {[%clk 0:02:37]} 10. b4 {[%clk 0:02:11]}  Bb6 {[%clk 0:02:35]} 11. Na3 {[%clk 0:02:11]}  a6 {[%clk 0:02:31]} 12. b5 {[%clk 0:02:07]}  Na5 {[%clk 0:02:29]} 13. c4 {[%clk 0:02:06]}  O-O {[%clk 0:02:25]} 14. Rc1 {[%clk 0:01:58]}  Bc5 {[%clk 0:01:58]} 15. cxd5 {[%clk 0:01:47]}  Nxd5 {[%clk 0:01:59]} 16. Bd2 {[%clk 0:01:46]}  Qe7 {[%clk 0:01:49]} 17. Nc4 {[%clk 0:01:46]}  Nxc4 {[%clk 0:01:39]} 18. Bxc4 {[%clk 0:01:47]}  axb5 {[%clk 0:01:39]} 19. Bxd5 {[%clk 0:01:46]}  exd5 {[%clk 0:01:40]} 20. Bg5 {[%clk 0:01:46]} 1-0


[Site "https://www.chess.com"]

[Event "Titled Tuesday Blitz June 07 Late 2022"]
[White "Grigoriants, Sergey"]
[Black "Livaic, Leon"]
[WhiteFideId "4130804"]
[BlackFideId "14531534"]
[WhiteElo "2502"]
[BlackElo "2540"]
[Result "1-0"]
[Round "05"]
[TimeControl "180+1"]
[Date "2022.06.07"]
[WhiteClock "0:00:09"]
[BlackClock "0:00:03"]

1. e4 {[%clk 0:03:00]}  c5 {[%clk 0:02:31]} 2. Nf3 {[%clk 0:02:59]}  d6 {[%clk 0:02:29]} 3. d4 {[%clk 0:02:54]}  cxd4 {[%clk 0:02:30]} 4. Nxd4 {[%clk 0:02:54]}  Nf6 {[%clk 0:02:30]} 5. Nc3 {[%clk 0:02:55]}  a6 {[%clk 0:02:29]} 6. a4 {[%clk 0:02:55]}  Nc6 {[%clk 0:02:27]} 7. Nb3 {[%clk 0:02:51]}  g6 {[%clk 0:02:24]} 8. Be2 {[%clk 0:02:49]}  Bg7 {[%clk 0:02:24]} 9. Be3 {[%clk 0:02:49]}  O-O {[%clk 0:02:23]} 10. O-O {[%clk 0:02:49]}  Be6 {[%clk 0:02:08]} 11. f4 {[%clk 0:02:45]}  Rc8 {[%clk 0:02:07]} 12. Bf3 {[%clk 0:02:43]}  Na5 {[%clk 0:01:55]} 13. e5 {[%clk 0:02:33]}  dxe5 {[%clk 0:01:50]} 14. Qxd8 {[%clk 0:02:32]}  Rfxd8 {[%clk 0:01:47]} 15. Nxa5 {[%clk 0:02:33]}  e4 {[%clk 0:01:45]} 16. Nxe4 {[%clk 0:02:19]}  Nd5 {[%clk 0:01:45]} 17. Bf2 {[%clk 0:02:04]}  Rxc2 {[%clk 0:01:41]} 18. Nxb7 {[%clk 0:02:01]}  Rb8 {[%clk 0:01:36]} 19. Nbc5 {[%clk 0:02:01]}  Bf5 {[%clk 0:01:18]} 20. g4 {[%clk 0:01:52]}  Nxf4 {[%clk 0:01:05]} 21. gxf5 {[%clk 0:01:49]}  Nh3+ {[%clk 0:01:01]} 22. Kg2 {[%clk 0:01:36]}  Nxf2 {[%clk 0:01:00]} 23. Rxf2 {[%clk 0:01:33]}  Rxf2+ {[%clk 0:01:00]} 24. Nxf2 {[%clk 0:01:32]}  Rxb2 {[%clk 0:00:58]} 25. Rd1 {[%clk 0:01:28]}  Bf6 {[%clk 0:00:52]} 26. fxg6 {[%clk 0:01:23]}  hxg6 {[%clk 0:00:52]} 27. Ne4 {[%clk 0:01:02]}  Bh4 {[%clk 0:00:50]} 28. Rd2 {[%clk 0:01:03]}  Rb4 {[%clk 0:00:49]} 29. Ra2 {[%clk 0:01:00]}  f5 {[%clk 0:00:48]} 30. Nc5 {[%clk 0:00:59]}  a5 {[%clk 0:00:45]} 31. Nfd3 {[%clk 0:00:57]}  Rd4 {[%clk 0:00:43]} 32. Re2 {[%clk 0:00:56]}  Bf6 {[%clk 0:00:40]} 33. Ne5 {[%clk 0:00:44]}  Kh7 {[%clk 0:00:35]} 34. Ned7 {[%clk 0:00:33]}  Bh4 {[%clk 0:00:30]} 35. Nf8+ {[%clk 0:00:31]}  Kh6 {[%clk 0:00:29]} 36. Nfe6 {[%clk 0:00:26]}  Rc4 {[%clk 0:00:28]} 37. Bd5 {[%clk 0:00:21]}  Rg4+ {[%clk 0:00:25]} 38. Kf1 {[%clk 0:00:19]}  Rb4 {[%clk 0:00:21]} 39. Bc6 {[%clk 0:00:16]}  Bf6 {[%clk 0:00:19]} 40. Bb5 {[%clk 0:00:16]}  g5 {[%clk 0:00:18]} 41. Nd7 {[%clk 0:00:12]}  Bc3 {[%clk 0:00:17]} 42. Rc2 {[%clk 0:00:11]}  Rb3 {[%clk 0:00:15]} 43. Ndc5 {[%clk 0:00:10]}  Ra3 {[%clk 0:00:15]} 44. Nd3 {[%clk 0:00:07]}  g4 {[%clk 0:00:13]} 45. Ndf4 {[%clk 0:00:07]}  Be5 {[%clk 0:00:09]} 46. Nd5 {[%clk 0:00:06]}  Rh3 {[%clk 0:00:04]} 47. Re2 {[%clk 0:00:06]}  Bxh2 {[%clk 0:00:04]} 48. Ndf4 {[%clk 0:00:05]}  Bxf4 {[%clk 0:00:05]} 49. Nxf4 {[%clk 0:00:05]}  Rf3+ {[%clk 0:00:05]} 50. Rf2 {[%clk 0:00:06]}  Ra3 {[%clk 0:00:05]} 51. Ne6 {[%clk 0:00:05]}  Kg6 {[%clk 0:00:05]} 52. Nd4 {[%clk 0:00:05]}  e6 {[%clk 0:00:04]} 53. Nxe6 {[%clk 0:00:04]}  g3 {[%clk 0:00:04]} 54. Rd2 {[%clk 0:00:03]}  Kf6 {[%clk 0:00:04]} 55. Nc5 {[%clk 0:00:03]}  f4 {[%clk 0:00:04]} 56. Kg2 {[%clk 0:00:04]}  Kg5 {[%clk 0:00:04]} 57. Bc6 {[%clk 0:00:04]}  Kh4 {[%clk 0:00:04]} 58. Bf3 {[%clk 0:00:03]}  Kg5 {[%clk 0:00:03]} 59. Ne6+ {[%clk 0:00:03]}  Kf5 {[%clk 0:00:03]} 60. Nd4+ {[%clk 0:00:04]}  Ke5 {[%clk 0:00:03]} 61. Ne2 {[%clk 0:00:04]}  Rxa4 {[%clk 0:00:03]} 62. Rd5+ {[%clk 0:00:04]}  Ke6 {[%clk 0:00:03]} 63. Rb5 {[%clk 0:00:05]}  Ra2 {[%clk 0:00:03]} 64. Kh3 {[%clk 0:00:05]}  a4 {[%clk 0:00:03]} 65. Nxf4+ {[%clk 0:00:05]}  Kd6 {[%clk 0:00:03]} 66. Kxg3 {[%clk 0:00:06]}  a3 {[%clk 0:00:03]} 67. Ra5 {[%clk 0:00:06]}  Ra1 {[%clk 0:00:04]} 68. Ne2 {[%clk 0:00:06]}  a2 {[%clk 0:00:03]} 69. Kf2 {[%clk 0:00:06]}  Kc7 {[%clk 0:00:02]} 70. Bd5 {[%clk 0:00:06]}  Kb6 {[%clk 0:00:02]} 71. Rxa2 {[%clk 0:00:06]}  Rd1 {[%clk 0:00:03]} 72. Rb2+ {[%clk 0:00:06]}  Kc5 {[%clk 0:00:03]} 73. Bf3 {[%clk 0:00:07]}  Rd8 {[%clk 0:00:03]} 74. Rc2+ {[%clk 0:00:07]}  Kb4 {[%clk 0:00:03]} 75. Ng3 {[%clk 0:00:07]}  Kb3 {[%clk 0:00:04]} 76. Rc7 {[%clk 0:00:07]}  Kb4 {[%clk 0:00:04]} 77. Ne4 {[%clk 0:00:07]}  Rh8 {[%clk 0:00:05]} 78. Ke3 {[%clk 0:00:07]}  Rd8 {[%clk 0:00:03]} 79. Be2 {[%clk 0:00:06]}  Ka5 {[%clk 0:00:03]} 80. Rb7 {[%clk 0:00:06]}  Ka4 {[%clk 0:00:04]} 81. Rb1 {[%clk 0:00:06]}  Ka3 {[%clk 0:00:04]} 82. Bd3 {[%clk 0:00:06]}  Ka2 {[%clk 0:00:04]} 83. Rb7 {[%clk 0:00:06]}  Ka3 {[%clk 0:00:05]} 84. Nc5 {[%clk 0:00:06]}  Ka2 {[%clk 0:00:04]} 85. Be4 {[%clk 0:00:06]}  Ka3 {[%clk 0:00:04]} 86. Nd3 {[%clk 0:00:06]}  Re8 {[%clk 0:00:03]} 87. Kd4 {[%clk 0:00:06]}  Rd8+ {[%clk 0:00:04]} 88. Kc3 {[%clk 0:00:07]}  Rc8+ {[%clk 0:00:04]} 89. Kd4 {[%clk 0:00:07]}  Ka2 {[%clk 0:00:04]} 90. Bd5+ {[%clk 0:00:07]}  Ka1 {[%clk 0:00:03]} 91. Ra7+ {[%clk 0:00:06]}  Kb1 {[%clk 0:00:03]} 92. Nc5 {[%clk 0:00:07]}  Rh8 {[%clk 0:00:03]} 93. Be4+ {[%clk 0:00:07]}  Kb2 {[%clk 0:00:03]} 94. Rb7+ {[%clk 0:00:07]}  Ka3 {[%clk 0:00:03]} 95. Rb3+ {[%clk 0:00:07]}  Ka2 {[%clk 0:00:04]} 96. Bd5 {[%clk 0:00:08]}  Ka1 {[%clk 0:00:04]} 97. Ra3+ {[%clk 0:00:07]}  Kb2 {[%clk 0:00:04]} 98. Ra2+ {[%clk 0:00:08]}  Kb1 {[%clk 0:00:05]} 99. Rg2 {[%clk 0:00:08]}  Rh4+ {[%clk 0:00:05]} 100. Ne4 {[%clk 0:00:09]}  Kc1 {[%clk 0:00:04]} 101. Kc3 {[%clk 0:00:08]}  Rh3+ {[%clk 0:00:04]} 102. Ng3 {[%clk 0:00:08]}  Kd1 {[%clk 0:00:04]} 103. Bf3+ {[%clk 0:00:08]}  Ke1 {[%clk 0:00:04]} 104. Re2+ {[%clk 0:00:09]}  Kd1 {[%clk 0:00:03]} 105. Re3+ {[%clk 0:00:09]}  Kc1 {[%clk 0:00:03]} 106. Re1# {[%clk 0:00:09]} 1-0


[Site "https://www.chess.com"]